[Event "DFMMLV 2017"]
[Site "Braunfels"]
[Date "2017.06.17"]
[Round "4"]
[White "Frank, Michelle Viviane"]
[Black "Siegl, Melina"]
[Result "0-1"]
[ECO "A88"]
[WhiteElo "1949"]
[BlackElo "1972"]
[Annotator "NA"]
[PlyCount "72"]
[EventDate "2017.??.??"]
[EventType "team-tourn"]
[EventCountry "GER"]
[SourceTitle "playchess.com"]
[Source "ChessBase"]
[SourceQuality "1"]
[TimeControl "40/5400+30:1800+30"]

{[%evp 15,65,17,54,32767,20,20,89,-37,-31,-72,-59,-114,-130,-161,-160,-152,32767,32767,32767,32767,32767,32767,-152,-187,-97,-174,-61,32767,32767,32767,0,0,0,-287,-306,-363,32767,32767,32767,32767,-395,-411,-411,-543,32767,32767,32767,32767,-559,32767,32767,-552]} 1. d4 {[%emt 0:00:00]} d6 {[%emt 0:00:05]} 2. Nf3 {[%emt 0:00:05]} g6 {[%emt 0:00:30]} 3. c4 {[%emt 0:00:16]} f5 {[%emt 0:00:56]} 4. Nc3 {[%emt 0:00:33]} Nf6 {[%emt 0:00:10]} 5. g3 {[%emt 0:00:15]} Bg7 {[%emt 0:00:05]} 6. Bg2 {[%emt 0:00:04]} O-O {[%emt 0:00:19]} 7. O-O {[%emt 0:00:05]} c6 {[%emt 0:00:05]} 8. Qc2 {[%emt 0:00:42]} Qe8 {[%emt 0:06:04] LiveBook: 6 Games} 9. d5 {[%emt 0:02:10] A88: Dutch Defence: Leningrad System: 5 Nf3 0-0 6 0-0 d6 7 Nc3 c6} e5 {[%emt 0:05:13]} 10. dxe6 Bxe6 {[%emt 0:00:07]} (10... Qxe6 $11 11. Rd1 Qxc4) 11. Ng5 $146 {[%emt 0:00:19]} (11. Bf4 $16) ({Predecessor:} 11. b3 Na6 12. a3 Nc7 13. Bf4 Qe7 14. Rad1 Rad8 15. Rd2 d5 16. cxd5 Ncxd5 17. Nxd5 Bxd5 {0-1 (49) Akobian,V (2606)-Gurevich,M (2634) Beijing 2008}) 11... Bxc4 {[%emt 0:01:22]} 12. Bf4 {[%emt 0:00:36]} Qe7 {[%emt 0:03:19]} 13. b3 {[%emt 0:00:24] [#]} Ba6 $1 {[%emt 0:00:39]} 14. Rad1 {[%emt 0:00:33] [#]} d5 $1 {[%emt 0:00:17]} 15. Rfe1 {[%emt 0:00:08]} h6 {[%emt 0:05:21]} 16. Nf3 {[%emt 0:00:08]} Ne4 {[%emt 0:00:35]} 17. Nxe4 {[%emt 0:00:47]} fxe4 {[%emt 0:03:11]} 18. Nh4 {[%emt 0:00:11]} Qf7 {[%emt 0:08:43]} ({Don't go for} 18... Rxf4 $2 19. Nxg6 Qb4 20. Nxf4 $18 (20. gxf4 Nd7 $16)) 19. f3 {[%emt 0:28:39]} g5 {[%emt 0:04:05]} 20. fxe4 {[%emt 0:00:10]} gxf4 {[%emt 0:13:26]} ({Black should play} 20... gxh4 $17 21. exd5 Kh8) 21. exd5 {[%emt 0:00:18]} fxg3 {[%emt 0:08:32]} 22. Ng6 {[%emt 0:00:46]} gxh2+ {[%emt 0:05:20]} (22... Re8 $17 23. hxg3 Nd7 24. dxc6 Nf6) 23. Kh1 $1 {[%emt 0:00:16]} Re8 {[%emt 0:01:17]} 24. d6 $2 {[%emt 0:03:18]} (24. dxc6 $11 {and White has nothing to worry.} bxc6 25. Rd6) 24... Nd7 {[%emt 0:01:39]} 25. Ne7+ {[%emt 0:00:24]} Rxe7 {[%emt 0:00:43]} 26. dxe7 {[%emt 0:00:05]} Qxe7 {[%emt 0:00:04]} 27. Qf5 {[%emt 0:01:47]} Ne5 {[%emt 0:06:56]} 28. Be4 {[%emt 0:00:27]} Bf6 {[%emt 0:00:36]} 29. Rd2 {[%emt 0:01:01]} Bg5 {[%emt 0:02:56]} 30. Rd6 {[%emt 0:03:43]} Rf8 {[%emt 0:04:37]} 31. Qe6+ {[%emt 0:00:53]} Qxe6 {[%emt 0:00:25]} 32. Rxe6 {[%emt 0:00:06]} Ng4 {[%emt 0:01:31]} 33. Bf3 $19 {[%emt 0:00:46]} Nf2+ {[%emt 0:05:58]} 34. Kg2 {[%emt 0:00:57]} h1=Q+ {[%emt 0:00:13]} 35. Rxh1 {[%emt 0:00:03]} Nxh1 {[%emt 0:00:10]} 36. Rd6 {[%emt 0:00:08]} Ng3 {[%emt 0:01:14]} 0-1

[Event "DFMMLV 2017"]
[Site "Braunfels"]
[Date "2017.06.17"]
[Round "4"]
[White "Mehling, Katharina"]
[Black "Heymann-Lobzhanidze, Anna-Luise"]
[Result "1-0"]
[ECO "B07"]
[WhiteElo "1905"]
[BlackElo "1979"]
[Annotator "NA"]
[PlyCount "43"]
[EventDate "2017.??.??"]
[EventType "team-tourn"]
[EventCountry "GER"]
[SourceTitle "playchess.com"]
[Source "ChessBase"]
[SourceQuality "1"]
[TimeControl "40/5400+30:1800+30"]

{[%evp 10,41,29,33,35,31,29,31,29,14,31,-56,43,17,45,21,216,209,237,240,215,237,335,32767,335,300,32767,32767,32767,32767,32767,32767,475,417]} 1. e4 {[%emt 0:00:00]} d6 {[%emt 0:01:47]} 2. d4 {[%emt 0:00:00]} Nf6 {[%emt 0:00:12]} 3. Nc3 {[%emt 0:00:00]} g6 {[%emt 0:00:16]} 4. f3 {[%emt 0:00:01]} Bg7 {[%emt 0:00:11]} 5. Be3 {[%emt 0:00:06]} c6 {[%emt 0:00:21]} 6. Qd2 {[%emt 0:00:27]} b5 {[%emt 0:00:39]} 7. Bh6 {[%emt 0:04:41]} Bxh6 {[%emt 0:00:42]} 8. Qxh6 {[%emt 0:00:57]} b4 {[%emt 0:00:22] B07: Pirc Defence: Miscellaneous Systems} 9. Nd1 {[%emt 0:06:21] LiveBook: 10 Games} (9. Nce2 Qa5 10. Nf4 b3+ 11. c3 Qxa2 12. Rc1 Qxb2 13. Nd3 Qa2 {0-1 (13) Matsuura,E (2495)-Santiago,Y (2453) Sao Paulo 2016}) 9... Qa5 {[%emt 0:01:08]} 10. Kf2 $146 {[%emt 0:02:22]} (10. Bc4 $14) ({Predecessor:} 10. Qd2 Nbd7 11. Ne3 c5 12. Nc4 Qc7 13. d5 Nb6 14. a3 Nxc4 15. Bxc4 Rb8 16. Ne2 {½-½ (24) Calavalle,G (2247)-Xia,J (2286) Gallipoli 2017}) 10... c5 {[%emt 0:08:56]} (10... g5 $15 11. Ne3 Rg8) 11. e5 {[%emt 0:03:52]} Nd5 {[%emt 0:04:21]} 12. exd6 {[%emt 0:05:20]} e6 $2 {[%emt 0:04:21] [#]} ({Better is} 12... Nc6 $14) 13. Nh3 $1 {[%emt 0:05:37]} Nd7 {[%emt 0:06:20] [#]} 14. Qg7 $1 {[%emt 0:16:06]} Rf8 {[%emt 0:00:11] [#]} 15. Ng5 $1 {[%emt 0:04:23]} N7f6 {[%emt 0:15:41]} 16. Bc4 {[%emt 0:07:38]} Nh5 {[%emt 0:06:50] [#]} 17. Qe5 $1 {[%emt 0:02:39]} ({And not} 17. Qxh7 Ndf6 $11) 17... Nhf6 {[%emt 0:16:54]} 18. Nxh7 {[%emt 0:02:37]} Nxh7 {[%emt 0:02:13]} 19. Bxd5 {[%emt 0:01:28]} Rb8 {[%emt 0:00:08]} 20. d7+ {[%emt 0:02:47]} Kxd7 {[%emt 0:01:24]} 21. Qxb8 $18 {[%emt 0:03:44]} exd5 {[%emt 0:00:13]} 22. Qe5 {[%emt 0:03:34]} 1-0

[Event "DFMMLV 2017"]
[Site "Braunfels"]
[Date "2017.06.17"]
[Round "4"]
[White "Froehlich-Dill, Astrid"]
[Black "Semenova, Alisa"]
[Result "1-0"]
[ECO "D02"]
[WhiteElo "1892"]
[BlackElo "1621"]
[Annotator "NA RC"]
[PlyCount "111"]
[EventDate "2017.??.??"]
[EventType "team-tourn"]
[EventCountry "GER"]
[SourceTitle "playchess.com"]
[Source "ChessBase"]
[SourceQuality "1"]
[TimeControl "40/5400+30:1800+30"]

{[%evp 8,111,13,2,41,17,26,16,41,33,50,13,68,24,34,2,21,-35,147,161,32767,0,32767,-15,-8,32767,32767,32767,37,16,6,11,32767,32767,32767,32767,32767,32767,32767,32767,35,32767,32767,32767,32767,32767,32767,32767,32767,32767,29,25,15,23,32767,0,82,-20,72,25,34,38,48,33,101,43,79,26,89,30,126,99,133,32767,119,43,32767,32767,104,105,167,153,206,213,212,196,228,237,466,32767,510,452,502,32767,420,32767,32767,32767,533,631,1218,32767,529,807,2063,6379]} 1. d4 {[%emt 0:00:00]} d5 {[%emt 0:00:11]} 2. Nf3 {[%emt 0:00:00]} e6 {[%emt 0:00:21]} 3. Bf4 {[%emt 0:01:33]} c5 {[%emt 0:10:33]} 4. c3 {[%emt 0:02:31]} Nc6 {[%emt 0:01:44] LiveBook: 86 Games} 5. e3 {[%emt 0:00:56]} Bd7 {[%emt 0:07:41] D02: 1 d4 d5 2 Nf3 sidelines, including 2...Nf6 3 g3 and 2...Nf6 3 Bf4} (5... Bd6 6. Bg3 Nf6 7. Nbd2 O-O 8. Bb5 Ne7 9. Bd3 Qb6 10. Rb1 Ng6 11. Bxg6 hxg6 12. Bxd6 Qxd6 13. Ne5 b6 14. Qf3 Ba6 15. h4 Nd7 16. Nxd7 Qxd7 {0-1 (38) Gelfand,B (2734)-Inarkiev,E (2730) Magas 2016}) 6. Bd3 {[%emt 0:02:59]} c4 {[%emt 0:04:01]} 7. Bc2 {[%emt 0:00:42]} Nf6 {[%emt 0:03:54]} 8. O-O {[%emt 0:04:31]} Be7 {[%emt 0:04:19]} 9. Nbd2 {[%emt 0:07:39]} O-O {[%emt 0:06:29]} (9... Nh5 $1 $11) 10. b3 $146 {[%emt 0:05:26]} ({Predecessor:} 10. e4 dxe4 11. Ng5 b5 12. Ngxe4 Nd5 13. Bg3 Rc8 14. Qh5 g6 15. Qf3 f5 16. Nd6 {0-1 (24) Zielinski,M (2315)-Skrzypczak,J (2245) Oberhau 1991}) 10... b5 {[%emt 0:05:33]} 11. bxc4 {[%emt 0:01:03]} bxc4 {[%emt 0:01:49]} 12. e4 {[%emt 0:01:13]} Ba3 $2 {[%emt 0:07:36] [#]} (12... Qa5 $15) 13. e5 $1 {[%emt 0:05:39]} Nh5 {[%emt 0:11:12] [#]} 14. Be3 $2 {[%emt 0:06:30]} ({White has to play} 14. Bxh7+ $1 $18 Kxh7 15. Ng5+ Kg6 16. Be3) 14... f5 {[%emt 0:10:02]} 15. exf6 {[%emt 0:06:12]} Nxf6 {[%emt 0:02:46]} 16. Rb1 {[%emt 0:06:24]} Qa5 {[%emt 0:01:57]} 17. Ne5 {[%emt 0:04:46]} Be8 {[%emt 0:05:34]} 18. Nxc6 {[%emt 0:07:09]} Bxc6 {[%emt 0:00:13]} 19. Nf3 {[%emt 0:00:20]} Bd6 {[%emt 0:02:42]} 20. Ne5 {[%emt 0:04:16]} Be8 {[%emt 0:01:44]} 21. Rb7 {[%emt 0:05:39]} Qxa2 {[%emt 0:04:14]} 22. Qd2 {[%emt 0:03:08]} Qa6 {[%emt 0:00:48]} 23. Rfb1 {[%emt 0:00:21]} Bxe5 {[%emt 0:01:26]} 24. dxe5 {[%emt 0:00:59]} Ng4 {[%emt 0:01:22]} 25. Bc5 {[%emt 0:05:38]} Rf7 {[%emt 0:00:41]} 26. Rxf7 {[%emt 0:00:09]} Bxf7 {[%emt 0:00:17]} 27. Qg5 {[%emt 0:03:19]} Nh6 {[%emt 0:01:02]} 28. Qe7 {[%emt 0:01:24]} Re8 {[%emt 0:02:02]} 29. Qxa7 {[%emt 0:06:12]} Qxa7 {[%emt 0:00:02]} 30. Bxa7 {[%emt 0:00:02]} Ra8 {[%emt 0:00:18]} 31. Bd4 {[%emt 0:00:41]} Nf5 {[%emt 0:00:51] [#]} (31... Bg6 $11 32. Bxg6 hxg6) 32. Bc5 {[%emt 0:02:04]} (32. Bxf5 $1 $16 exf5 33. f4) 32... Rc8 {[%emt 0:01:02]} (32... Bg6 $11 {remains equal.}) 33. Rb5 {[%emt 0:02:53]} (33. Bxf5 $5 exf5 34. Be3 $16) 33... Be8 {[%emt 0:01:00]} 34. Bxf5 {[%emt 0:01:31]} exf5 {[%emt 0:00:03]} 35. Ra5 {[%emt 0:00:16]} Bf7 {[%emt 0:01:23]} ({Black should try} 35... Bc6 $14) 36. Bd4 {[%emt 0:00:25]} Be6 {[%emt 0:00:30]} 37. h4 {[%emt 0:00:13]} (37. Ra6 $16 Re8 38. f4) 37... Re8 {[%emt 0:00:54]} (37... f4 $1 $11) 38. Ra7 {[%emt 0:00:38]} g6 {[%emt 0:00:38]} ({Black should try} 38... f4 $14) 39. Be3 {[%emt 0:01:07]} Kh8 {[%emt 0:00:31]} 40. Bg5 {[%emt 0:00:46]} Kg8 {[%emt 0:30:29]} 41. Bf6 {[%emt 0:02:19]} (41. Kf1 $16) 41... Bf7 {[%emt 0:00:00]} 42. Rc7 {[%emt 0:03:51]} h6 {[%emt 0:00:00]} 43. f4 {[%emt 0:03:20]} h5 {[%emt 0:00:00]} (43... Be6 $16) 44. Kf2 {[%emt 0:00:22]} Kf8 {[%emt 0:00:00]} (44... Be6 $16 {is a better defense.} 45. Ke3 Kf8) 45. Ke3 {[%emt 0:00:33]} Kg8 {[%emt 0:00:00]} 46. Kd4 {[%emt 0:00:36]} Kf8 {[%emt 0:00:00]} 47. Kc5 {[%emt 0:00:27]} Kg8 $2 {[%emt 0:00:00]} (47... Re6 48. g3 Re8) 48. Be7 {[%emt 0:03:25]} Be6 $2 {[%emt 0:00:57]} (48... Rb8 49. Rc6 Be8) 49. Kd6 {[%emt 0:00:30]} Kf7 {[%emt 0:00:17]} 50. Ra7 {[%emt 0:02:30]} Bc8 {[%emt 0:02:44]} 51. Bf6+ {[%emt 0:02:38]} Kf8 {[%emt 0:00:46]} 52. Kxd5 {[%emt 0:01:12]} Be6+ {[%emt 0:00:33]} 53. Kd6 {[%emt 0:00:08]} Bf7 {[%emt 0:00:21]} 54. Bg5 {[%emt 0:02:04]} Kg7 {[%emt 0:01:13]} 55. Be7 {[%emt 0:01:07]} Kh8 {[%emt 0:00:42]} 56. e6 $18 {[%emt 0:00:20]} 1-0

[Event "DFMMLV 2017"]
[Site "Braunfels"]
[Date "2017.06.17"]
[Round "4"]
[White "Heil, Marina"]
[Black "Busch, Annette"]
[Result "1/2-1/2"]
[ECO "B23"]
[WhiteElo "1890"]
[BlackElo "1637"]
[Annotator "NA RC"]
[PlyCount "73"]
[EventDate "2017.??.??"]
[EventType "team-tourn"]
[EventCountry "GER"]
[SourceTitle "playchess.com"]
[Source "ChessBase"]
[SourceQuality "1"]
[TimeControl "40/5400+30:1800+30"]

{[%evp 8,73,-15,-20,30,-9,-2,-19,-14,32767,-10,-17,-8,-60,-14,-91,-91,-89,-100,-80,-67,-59,-30,32767,0,32767,0,32767,0,0,4,32767,23,0,12,32767,0,32767,32767,32767,41,32767,32767,32767,32767,32767,32767,32767,0,32767,32767,32767,32767,32767,32767,32767,32767,32767,32767,32767,32767,32767,-5,-23,32767,-453,-483,-426]} 1. e4 {[%emt 0:00:00]} c5 {[%emt 0:00:11]} 2. Nc3 {[%emt 0:00:00]} e6 {[%emt 0:00:09]} 3. f4 {[%emt 0:00:26]} d5 {[%emt 0:00:10]} 4. d3 {[%emt 0:00:31]} Be7 {[%emt 0:02:52]} 5. Nf3 {[%emt 0:01:01]} dxe4 {[%emt 0:00:53]} 6. Nxe4 {[%emt 0:00:18]} Nf6 {[%emt 0:01:20]} 7. Nc3 {[%emt 0:01:40]} Nc6 {[%emt 0:02:04]} 8. g3 {[%emt 0:01:10]} O-O {[%emt 0:03:44]} 9. Bg2 {[%emt 0:00:12]} Bd7 {[%emt 0:13:36]} 10. Qe2 {[%emt 0:11:21]} (10. O-O $11) 10... Rc8 {[%emt 0:03:30]} (10... Nd4 $5 {[%cal Rd4e2]} 11. Qd2 Bc6 $15) 11. b3 {[%emt 0:04:41]} (11. Ne5 $11) 11... Nd4 {[%emt 0:07:48]} 12. Qd2 {[%emt 0:10:51]} Bc6 {[%emt 0:07:48]} 13. O-O {[%emt 0:05:04]} Nxf3+ {[%emt 0:05:44]} 14. Bxf3 {[%emt 0:00:09]} Nd5 {[%emt 0:01:41]} 15. Ne4 {[%emt 0:03:20]} Nf6 {[%emt 0:02:49]} ({Black should try} 15... f5 $17 16. Ng5 Bf6) 16. Qe2 {[%emt 0:03:49]} Nxe4 {[%emt 0:04:47]} 17. dxe4 {[%emt 0:03:32]} Qb6 {[%emt 0:02:55]} (17... c4 $5) 18. c4 {[%emt 0:02:00]} Rfd8 {[%emt 0:02:28]} 19. Bb2 {[%emt 0:15:22]} Qb4 {[%emt 0:05:54]} 20. Rf2 {[%emt 0:03:57]} Rd7 {[%emt 0:04:20]} 21. Qc2 {[%emt 0:00:37]} Rcd8 {[%emt 0:00:34]} 22. Bc3 {[%emt 0:00:44]} Qb6 {[%emt 0:00:43]} 23. Qb2 {[%emt 0:02:56]} g6 {[%emt 0:04:04]} 24. Re1 {[%emt 0:04:37]} Qc7 {[%emt 0:02:14]} 25. Bh8 {[%emt 0:07:55]} Bf8 {[%emt 0:00:52]} 26. Bc3 {[%emt 0:02:58]} b5 {[%emt 0:02:00]} 27. cxb5 {[%emt 0:01:15]} Bxb5 {[%emt 0:00:19]} 28. Rc1 {[%emt 0:00:22]} Qb6 {[%emt 0:01:32]} 29. Bf6 {[%emt 0:01:14]} Be7 {[%emt 0:00:37]} 30. Bxe7 {[%emt 0:00:25]} Rxe7 {[%emt 0:00:06]} 31. Kg2 {[%emt 0:00:30]} Red7 {[%emt 0:03:23]} 32. Rfc2 {[%emt 0:00:21]} Ba6 {[%emt 0:02:40]} 33. Qc3 {[%emt 0:01:04]} Rd3 {[%emt 0:03:38]} 34. Qe1 {[%emt 0:03:45]} Qd6 {[%emt 0:02:13]} (34... R8d4 $17) 35. e5 {[%emt 0:01:12]} Qd4 {[%emt 0:00:40]} 36. Rxc5 $2 {[%emt 0:02:13]} (36. h4 $11 {and White is okay.}) 36... Rd2+ {[%emt 0:01:07]} 37. Kh3 $19 {[%emt 0:00:26]} 1/2-1/2

[Event "DFMMLV 2017"]
[Site "Braunfels"]
[Date "2017.06.17"]
[Round "4"]
[White "Mao, Yvonne"]
[Black "Rogozenco, Teodora"]
[Result "1-0"]
[ECO "B28"]
[WhiteElo "1863"]
[BlackElo "2147"]
[Annotator "NA"]
[PlyCount "63"]
[EventDate "2017.??.??"]
[EventType "team-tourn"]
[EventCountry "GER"]
[SourceTitle "playchess.com"]
[Source "ChessBase"]
[SourceQuality "1"]
[TimeControl "40/5400+30:1800+30"]

1. e4 {[%emt 0:01:53]} c5 {[%emt 0:00:23]} 2. Nf3 {[%emt 0:00:32]} a6 {[%emt 0:00:04]} 3. c4 {[%emt 0:00:33]} b6 {[%emt 0:00:15]} 4. d4 {[%emt 0:02:12]} cxd4 {[%emt 0:00:05]} 5. Nxd4 {[%emt 0:00:04]} Bb7 {[%emt 0:00:06]} 6. Nc3 {[%emt 0:00:19]} g6 {[%emt 0:00:45]} 7. Be3 {[%emt 0:00:47]} Bg7 {[%emt 0:00:06]} 8. Be2 {[%emt 0:01:16]} Nc6 {[%emt 0:01:37]} 9. Qd2 {[%emt 0:01:34]} d6 {[%emt 0:08:53]} 10. O-O {[%emt 0:01:47]} Nf6 {[%emt 0:02:16]} 11. f3 {[%emt 0:00:24]} O-O {[%emt 0:00:36]} 12. Nc2 $16 {[%emt 0:01:56]} Rc8 {[%emt 0:02:10]} 13. Rac1 {[%emt 0:02:11]} Nd7 {[%emt 0:00:53]} 14. Rfd1 {[%emt 0:12:58]} Na5 {[%emt 0:02:30]} 15. b3 {[%emt 0:00:25]} b5 {[%emt 0:02:38]} 16. Nd5 {[%emt 0:03:46]} bxc4 {[%emt 0:05:55]} 17. Nxe7+ {[%emt 0:00:06]} Qxe7 {[%emt 0:00:03]} 18. Qxa5 {[%emt 0:00:07]} cxb3 {[%emt 0:00:14]} 19. axb3 {[%emt 0:00:51]} Bb2 {[%emt 0:11:59]} 20. Rb1 {[%emt 0:18:54]} Rxc2 {[%emt 0:03:20]} 21. Bd3 {[%emt 0:00:06]} Rfc8 {[%emt 0:00:29]} 22. Bxc2 {[%emt 0:00:08]} Rxc2 {[%emt 0:00:06]} 23. Rxb2 {[%emt 0:01:27]} Rxb2 {[%emt 0:00:43]} 24. Qc3 {[%emt 0:00:08]} Ra2 {[%emt 0:02:08]} 25. Bh6 {[%emt 0:01:14]} Nf6 {[%emt 0:20:18]} 26. e5 {[%emt 0:03:20]} dxe5 {[%emt 0:00:58]} 27. Qb4 {[%emt 0:01:27]} Qe8 {[%emt 0:15:37]} 28. Qxb7 {[%emt 0:00:27]} e4 {[%emt 0:06:29]} 29. Qb6 {[%emt 0:03:10]} Qe5 {[%emt 0:02:53]} 30. Qd6 {[%emt 0:02:06]} Qxd6 {[%emt 0:09:02]} 31. Rxd6 {[%emt 0:00:07]} e3 {[%emt 0:01:58]} 32. Rd8+ {[%emt 0:00:07]} 1-0

[Event "DFMMLV 2017"]
[Site "Braunfels"]
[Date "2017.06.17"]
[Round "4"]
[White "Mao, Yvonne"]
[Black "Schmidt, Jade"]
[Result "*"]
[ECO "B28"]
[WhiteElo "1863"]
[BlackElo "2058"]
[Annotator "NA RC"]
[PlyCount "27"]
[EventDate "2017.??.??"]
[EventType "team-tourn"]
[EventCountry "GER"]
[SourceTitle "playchess.com"]
[Source "ChessBase"]
[SourceQuality "1"]
[TimeControl "40/5400+30:1800+30"]

{[%evp 11,23,53,79,78,66,75,86,32767,81,73,74,70,98,86]} 1. e4 {[%emt 0:01:53]} c5 {[%emt 0:00:23]} 2. Nf3 {[%emt 0:00:32]} a6 {[%emt 0:00:04]} 3. c4 {[%emt 0:00:33]} b6 {[%emt 0:00:15]} 4. d4 {[%emt 0:02:12]} cxd4 {[%emt 0:00:05]} 5. Nxd4 {[%emt 0:00:04]} Bb7 {[%emt 0:00:06]} 6. Nc3 {[%emt 0:00:19]} g6 {[%emt 0:00:45]} 7. Be3 {[%emt 0:00:47]} Bg7 {[%emt 0:00:06]} 8. Be2 {[%emt 0:01:16]} Nc6 {[%emt 0:01:37]} 9. Qd2 {[%emt 0:01:34]} d6 {[%emt 0:08:53]} 10. O-O {[%emt 0:01:47]} Nf6 {[%emt 0:02:16]} 11. f3 {[%emt 0:00:24]} O-O {[%emt 0:00:36]} 12. Nc2 $16 {[%emt 0:01:56]} Rc8 {[%emt 0:02:10]} 13. Rac1 {[%emt 0:02:11]} Nd7 {[%emt 0:00:53]} 14. Rfd1 {[%emt 0:12:58]} *

[Event "DFMMLV 2017"]
[Site "Braunfels"]
[Date "2017.06.17"]
[Round "4"]
[White "Liez, Franziska"]
[Black "Damrich, Alina"]
[Result "1-0"]
[ECO "B06"]
[WhiteElo "1844"]
[BlackElo "1744"]
[Annotator "NA"]
[PlyCount "63"]
[EventDate "2017.??.??"]
[EventType "team-tourn"]
[EventCountry "GER"]
[SourceTitle "playchess.com"]
[Source "ChessBase"]
[SourceQuality "1"]
[TimeControl "40/5400+30:1800+30"]

1. e4 {[%emt 0:00:00]} g6 {[%emt 0:00:06]} 2. d4 {[%emt 0:00:03]} d6 {[%emt 0:00:07]} 3. Nc3 {[%emt 0:00:37]} Bg7 {[%emt 0:00:33]} 4. Be3 {[%emt 0:01:46]} Nf6 {[%emt 0:01:28]} 5. f3 {[%emt 0:01:50]} c6 {[%emt 0:02:36]} 6. Qd2 {[%emt 0:01:43] LiveBook: 463 Games} O-O {[%emt 0:02:18]} 7. O-O-O {[%emt 0:00:44]} b5 {[%emt 0:05:06]} 8. Bh6 {[%emt 0:07:36]} a5 {[%emt 0:05:00] [#]} (8... Qa5 $14) 9. Bxg7 {[%emt 0:02:05]} (9. h4 $1 $16) 9... Kxg7 {[%emt 0:00:32]} 10. g4 {[%emt 0:01:57] B07: Pirc Defence: Miscellaneous Systems} b4 $146 {[%emt 0:06:23]} ({Predecessor:} 10... a4 11. Nb1 Qa5 12. Qxa5 Rxa5 13. a3 c5 14. d5 b4 15. h4 h5 16. g5 Ne8 17. c3 bxa3 18. Nxa3 {0-1 (59) Jelisavcic,S (2117)-Tasic,V (2241) Vrnjacka Banja 2008}) 11. Na4 {[%emt 0:02:04]} Ba6 {[%emt 0:02:46]} 12. Bxa6 {[%emt 0:03:23]} Nxa6 {[%emt 0:01:12]} 13. h4 {[%emt 0:02:47]} h5 {[%emt 0:11:18]} 14. gxh5 {[%emt 0:06:19]} Nxh5 {[%emt 0:00:13]} 15. Ne2 {[%emt 0:00:28]} e5 {[%emt 0:05:50]} 16. Qe3 {[%emt 0:05:05]} Qe7 {[%emt 0:09:32]} 17. Rdg1 {[%emt 0:03:46]} c5 {[%emt 0:06:05]} 18. dxe5 {[%emt 0:04:07]} dxe5 {[%emt 0:01:10]} 19. Ng3 {[%emt 0:04:07]} Nxg3 {[%emt 0:04:46]} 20. Rxg3 {[%emt 0:01:02]} Rh8 $16 {[%emt 0:03:52]} 21. h5 {[%emt 0:08:22]} Rh7 {[%emt 0:05:38]} 22. Rgh3 {[%emt 0:05:34]} Rah8 {[%emt 0:01:30]} 23. h6+ {[%emt 0:02:50]} Kf8 {[%emt 0:08:55]} 24. Nb6 {[%emt 0:01:12]} f6 {[%emt 0:05:07]} 25. Nd5 {[%emt 0:02:00]} Qe6 {[%emt 0:01:09]} 26. f4 {[%emt 0:04:30]} c4 {[%emt 0:03:55]} 27. fxe5 {[%emt 0:03:30]} fxe5 {[%emt 0:00:08]} 28. Rf1+ {[%emt 0:03:39]} Rf7 {[%emt 0:01:44]} 29. Rxf7+ {[%emt 0:01:07]} Kxf7 {[%emt 0:00:11]} 30. Rf3+ {[%emt 0:03:57]} Kg8 {[%emt 0:03:14]} 31. Rf6 {[%emt 0:00:16]} Qe8 {[%emt 0:01:03]} 32. Rxa6 {[%emt 0:00:29]} 1-0